[Event "Late-Titled-Tuesday-Blitz-January-23-2024"]
[Site "Chess.com"]
[Date "2024.01.23"]
[Round "1"]
[White "jk13"]
[Black "GMJustin"]
[Result "1-0"]
[WhiteElo "2650"]
[BlackElo "2344"]
[TimeControl "180+1"]
[EndTime "14:06:16 PST"]
[Termination "jk13 won on time"]

1. e4 {[%clk 0:02:56.9]} 1... e5 {[%clk 0:02:45.3]} 2. Nf3 {[%clk 0:02:56.4]}
2... Nc6 {[%clk 0:02:44.6]} 3. Bc4 {[%clk 0:02:57.1]} 3... Nf6 {[%clk
0:02:42.5]} 4. d3 {[%clk 0:02:57.5]} 4... Bc5 {[%clk 0:02:39.6]} 5. c3 {[%clk
0:02:57.4]} 5... O-O {[%clk 0:02:36.5]} 6. O-O {[%clk 0:02:56.5]} 6... a6 {[%clk
0:02:34.6]} 7. Bb3 {[%clk 0:02:56.3]} 7... d6 {[%clk 0:02:31.5]} 8. h3 {[%clk
0:02:54.7]} 8... h6 {[%clk 0:02:26.2]} 9. Re1 {[%clk 0:02:54.7]} 9... Ba7 {[%clk
0:02:24.3]} 10. Nbd2 {[%clk 0:02:55.1]} 10... Qe7 {[%clk 0:02:18]} 11. Nf1
{[%clk 0:02:55.1]} 11... Nh5 {[%clk 0:02:05.1]} 12. Ne3 {[%clk 0:02:50.6]} 12...
Nf4 {[%clk 0:02:01.3]} 13. Nd5 {[%clk 0:02:49.2]} 13... Nxd5 {[%clk 0:01:52.9]}
14. Bxd5 {[%clk 0:02:46.4]} 14... Be6 {[%clk 0:01:49]} 15. d4 {[%clk 0:02:40]}
15... Qf6 {[%clk 0:01:26.4]} 16. Bxc6 {[%clk 0:02:24.2]} 16... bxc6 {[%clk
0:01:24.6]} 17. dxe5 {[%clk 0:02:24.6]} 17... dxe5 {[%clk 0:01:24.4]} 18. Qe2
{[%clk 0:02:24.8]} 18... Rfd8 {[%clk 0:01:16.8]} 19. b3 {[%clk 0:02:17]} 19...
a5 {[%clk 0:01:08.1]} 20. Be3 {[%clk 0:02:03.4]} 20... Bb6 {[%clk 0:00:48.2]}
21. Rad1 {[%clk 0:01:59.5]} 21... a4 {[%clk 0:00:33.9]} 22. c4 {[%clk
0:01:57.1]} 22... Ba5 {[%clk 0:00:19.4]} 23. Bd2 {[%clk 0:01:50.2]} 23... Bb6
{[%clk 0:00:12.3]} 24. Bc3 {[%clk 0:01:39.9]} 24... Bd4 {[%clk 0:00:11.3]} 25.
Bxd4 {[%clk 0:01:14.4]} 25... exd4 {[%clk 0:00:12.2]} 26. e5 {[%clk 0:01:15.2]}
26... Qf4 {[%clk 0:00:06.3]} 27. g3 {[%clk 0:01:14.2]} 27... Qf5 {[%clk
0:00:04.7]} 28. Nxd4 {[%clk 0:01:13.3]} 28... Qxh3 {[%clk 0:00:02.1]} 29. Nxe6
{[%clk 0:01:07.2]} 29... Rxd1 {[%clk 0:00:01.1]} 30. Rxd1 {[%clk 0:01:06.7]} 1-0

[Event "Late-Titled-Tuesday-Blitz-January-23-2024"]
[Site "Chess.com"]
[Date "2024.01.23"]
[Round "1"]
[White "imdarealist"]
[Black "Yurovskykh_Oleksandr"]
[Result "0-1"]
[WhiteElo "2290"]
[BlackElo "2604"]
[TimeControl "180+1"]
[EndTime "14:06:30 PST"]
[Termination "Yurovskykh_Oleksandr won by resignation"]

1. d4 {[%clk 0:02:59.9]} 1... d5 {[%clk 0:02:58.6]} 2. Bf4 {[%clk 0:03:00.3]}
2... c5 {[%clk 0:02:58]} 3. e3 {[%clk 0:03:00.6]} 3... Nc6 {[%clk 0:02:58.2]} 4.
c3 {[%clk 0:02:59.3]} 4... Bf5 {[%clk 0:02:58.5]} 5. Nd2 {[%clk 0:02:55.4]} 5...
e6 {[%clk 0:02:58.6]} 6. Ngf3 {[%clk 0:02:52.4]} 6... Qb6 {[%clk 0:02:57.6]} 7.
b3 {[%clk 0:02:50.8]} 7... cxd4 {[%clk 0:02:57.3]} 8. exd4 {[%clk 0:02:34.1]}
8... Ba3 {[%clk 0:02:57.4]} 9. Ne5 {[%clk 0:02:30.3]} 9... Bb2 {[%clk
0:02:44.8]} 10. Rc1 {[%clk 0:02:27.6]} 10... Bxc1 {[%clk 0:02:44]} 11. Qxc1
{[%clk 0:02:28.5]} 11... Nf6 {[%clk 0:02:42.7]} 12. Qa3 {[%clk 0:02:27]} 12...
Nh5 {[%clk 0:02:31.4]} 13. Be3 {[%clk 0:02:07.3]} 13... Nf6 {[%clk 0:02:31.2]}
14. Ndf3 {[%clk 0:02:04.8]} 14... Ne4 {[%clk 0:02:30.1]} 15. Qb2 {[%clk
0:01:55.7]} 15... f6 {[%clk 0:02:30.1]} 16. Nd3 {[%clk 0:01:55.2]} 16... O-O
{[%clk 0:02:17.7]} 17. Be2 {[%clk 0:01:54.5]} 17... Qa5 {[%clk 0:02:17.6]} 18.
b4 {[%clk 0:01:54.7]} 18... Qc7 {[%clk 0:02:17.4]} 19. O-O {[%clk 0:01:54.6]}
19... Ne7 {[%clk 0:02:14.8]} 20. Rc1 {[%clk 0:01:52.8]} 20... Rfc8 {[%clk
0:02:12.9]} 21. Nc5 {[%clk 0:01:50.5]} 21... b6 {[%clk 0:02:10.8]} 22. Na6
{[%clk 0:01:47.2]} 22... Qd7 {[%clk 0:02:05.3]} 23. Qb3 {[%clk 0:01:28.6]} 23...
Nd6 {[%clk 0:02:04.1]} 24. a4 {[%clk 0:01:21.1]} 24... Nc4 {[%clk 0:02:03.1]}
25. Bf4 {[%clk 0:01:18.3]} 25... Qb7 {[%clk 0:01:58.7]} 26. b5 {[%clk
0:01:15.6]} 26... Qd7 {[%clk 0:01:55.4]} 27. Ne1 {[%clk 0:01:05.4]} 27... Bg6
{[%clk 0:01:47.6]} 28. Nd3 {[%clk 0:01:03.9]} 28... Nf5 {[%clk 0:01:45.9]} 29.
Ndb4 {[%clk 0:01:01]} 29... Nfd6 {[%clk 0:01:44.5]} 30. Nc6 {[%clk 0:00:59.9]}
30... Rxc6 {[%clk 0:01:44.9]} 31. bxc6 {[%clk 0:00:59.6]} 31... Qxc6 {[%clk
0:01:45.8]} 32. Nb4 {[%clk 0:00:55.9]} 32... Qd7 {[%clk 0:01:44.8]} 33. Bxd6
{[%clk 0:00:51.5]} 33... Nxd6 {[%clk 0:01:45.7]} 34. Nxd5 {[%clk 0:00:51.4]}
34... Rc8 {[%clk 0:01:38.6]} 35. Nf4 {[%clk 0:00:45.2]} 35... Bf7 {[%clk
0:01:38.3]} 36. Ba6 {[%clk 0:00:42.9]} 36... Rc7 {[%clk 0:01:37.7]} 37. Qb4
{[%clk 0:00:38.1]} 37... Qc6 {[%clk 0:01:32.5]} 38. c4 {[%clk 0:00:27.7]} 38...
Nf5 {[%clk 0:01:25.8]} 39. Bb5 {[%clk 0:00:20.6]} 39... Qd6 {[%clk 0:01:24.5]}
40. Qd2 {[%clk 0:00:19.8]} 40... Qxd4 {[%clk 0:01:21.8]} 41. Qxd4 {[%clk
0:00:18.4]} 41... Nxd4 {[%clk 0:01:22.7]} 42. Nd3 {[%clk 0:00:15.9]} 42... e5
{[%clk 0:01:21.3]} 43. c5 {[%clk 0:00:15.5]} 43... Ne2+ {[%clk 0:01:21.5]} 44.
Kf1 {[%clk 0:00:15]} 44... Nxc1 {[%clk 0:01:22.4]} 45. cxb6 {[%clk 0:00:15.3]}
45... axb6 {[%clk 0:01:22.1]} 46. Nb4 {[%clk 0:00:14.9]} 46... Bc4+ {[%clk
0:01:21.5]} 0-1

[Event "Late-Titled-Tuesday-Blitz-January-23-2024"]
[Site "Chess.com"]
[Date "2024.01.23"]
[Round "1"]
[White "Quattroporte300"]
[Black "GMAkobianSTL"]
[Result "0-1"]
[WhiteElo "2429"]
[BlackElo "2757"]
[TimeControl "180+1"]
[EndTime "14:06:31 PST"]
[Termination "GMAkobianSTL won on time"]

1. e4 {[%clk 0:03:00.9]} 1... d6 {[%clk 0:02:58.1]} 2. d4 {[%clk 0:02:58.7]}
2... Nf6 {[%clk 0:02:57.7]} 3. Nc3 {[%clk 0:02:58.2]} 3... c6 {[%clk 0:02:57.7]}
4. f4 {[%clk 0:02:57.7]} 4... Qa5 {[%clk 0:02:57.4]} 5. Bd3 {[%clk 0:02:56.4]}
5... e5 {[%clk 0:02:57.2]} 6. Nf3 {[%clk 0:02:51.8]} 6... exd4 {[%clk
0:02:56.3]} 7. Nxd4 {[%clk 0:02:51]} 7... Qb6 {[%clk 0:02:56.3]} 8. Nb3 {[%clk
0:02:36.5]} 8... a5 {[%clk 0:02:55.8]} 9. Qf3 {[%clk 0:02:30.5]} 9... a4 {[%clk
0:02:51.7]} 10. Be3 {[%clk 0:02:21.4]} 10... Qb4 {[%clk 0:02:49.1]} 11. a3
{[%clk 0:02:21]} 11... axb3 {[%clk 0:02:47.4]} 12. axb4 {[%clk 0:02:17.6]} 12...
Rxa1+ {[%clk 0:02:46.2]} 13. Kd2 {[%clk 0:01:46.9]} 13... Rxh1 {[%clk
0:02:45.1]} 14. h3 {[%clk 0:01:46.5]} 14... bxc2 {[%clk 0:02:43.2]} 15. Kxc2
{[%clk 0:01:41.6]} 15... Ra1 {[%clk 0:02:31]} 16. g4 {[%clk 0:01:36.5]} 16...
Na6 {[%clk 0:02:29]} 17. b5 {[%clk 0:01:28.2]} 17... Nb4+ {[%clk 0:02:28.4]} 18.
Kd2 {[%clk 0:01:28.3]} 18... Nxd3 {[%clk 0:02:26.4]} 19. Kxd3 {[%clk 0:01:29]}
19... Be7 {[%clk 0:02:23.2]} 20. g5 {[%clk 0:01:28.9]} 20... Nd7 {[%clk
0:02:22.2]} 21. h4 {[%clk 0:01:26.7]} 21... O-O {[%clk 0:02:20.9]} 22. h5 {[%clk
0:01:26.6]} 22... Nc5+ {[%clk 0:02:17.1]} 23. Kc2 {[%clk 0:01:19.4]} 23... d5
{[%clk 0:02:15.9]} 24. Bxc5 {[%clk 0:01:00.4]} 24... Bxc5 {[%clk 0:02:15.1]} 25.
f5 {[%clk 0:01:00.3]} 25... Rg1 {[%clk 0:02:01]} 26. Qf4 {[%clk 0:00:39.1]}
26... Rg2+ {[%clk 0:01:51]} 27. Kb3 {[%clk 0:00:39.2]} 27... Rf2 {[%clk
0:01:51.1]} 28. Qe5 {[%clk 0:00:23.6]} 28... Rd8 {[%clk 0:01:21.5]} 29. h6
{[%clk 0:00:22.7]} 29... Bf8 {[%clk 0:01:19.9]} 30. Qc7 {[%clk 0:00:14.6]} 30...
Re8 {[%clk 0:01:17.3]} 31. hxg7 {[%clk 0:00:09.2]} 31... Bxg7 {[%clk 0:01:17]}
32. f6 {[%clk 0:00:10]} 32... Bf8 {[%clk 0:01:17]} 33. e5 {[%clk 0:00:10.3]}
33... Be6 {[%clk 0:01:12.4]} 34. bxc6 {[%clk 0:00:01.6]} 34... d4+ {[%clk
0:01:07.4]} 35. Ka4 {[%clk 0:00:02.3]} 35... dxc3 {[%clk 0:01:04]} 36. cxb7
{[%clk 0:00:02.4]} 36... Rxb2 {[%clk 0:01:03]} 37. Qxc3 {[%clk 0:00:01.5]} 37...
Rxb7 {[%clk 0:01:01]} 0-1

[Event "Late-Titled-Tuesday-Blitz-January-23-2024"]
[Site "Chess.com"]
[Date "2024.01.23"]
[Round "1"]
[White "Eloist"]
[Black "FontVella8"]
[Result "0-1"]
[WhiteElo "2413"]
[BlackElo "2733"]
[TimeControl "180+1"]
[EndTime "14:06:33 PST"]
[Termination "FontVella8 won by checkmate"]

1. e4 {[%clk 0:02:59.3]} 1... c6 {[%clk 0:03:00.3]} 2. Nf3 {[%clk 0:02:59]} 2...
d5 {[%clk 0:03:01.2]} 3. d3 {[%clk 0:02:59]} 3... Qc7 {[%clk 0:03:00.7]} 4. Nc3
{[%clk 0:02:53.9]} 4... dxe4 {[%clk 0:02:59.4]} 5. Nxe4 {[%clk 0:02:53.5]} 5...
Nf6 {[%clk 0:02:59.3]} 6. Qe2 {[%clk 0:02:52.5]} 6... Nxe4 {[%clk 0:02:55.9]} 7.
Qxe4 {[%clk 0:02:52.4]} 7... Nd7 {[%clk 0:02:56]} 8. Bf4 {[%clk 0:02:47.1]} 8...
Qb6 {[%clk 0:02:56]} 9. O-O-O {[%clk 0:02:40.5]} 9... Nf6 {[%clk 0:02:56.1]} 10.
Qd4 {[%clk 0:01:59.3]} 10... Bg4 {[%clk 0:02:42.9]} 11. Be2 {[%clk 0:01:47.7]}
11... Bxf3 {[%clk 0:02:33.9]} 12. Qxb6 {[%clk 0:01:47.5]} 12... axb6 {[%clk
0:02:33.8]} 13. Bxf3 {[%clk 0:01:48.4]} 13... Rxa2 {[%clk 0:02:34.1]} 14. Kb1
{[%clk 0:01:47.2]} 14... Ra4 {[%clk 0:02:34.1]} 15. Bc7 {[%clk 0:01:42.2]} 15...
b5 {[%clk 0:02:29.1]} 16. b3 {[%clk 0:01:41.6]} 16... Ra8 {[%clk 0:02:26.8]} 17.
Kb2 {[%clk 0:01:40.5]} 17... e6 {[%clk 0:02:26.8]} 18. Ra1 {[%clk 0:01:39.5]}
18... Rxa1 {[%clk 0:02:25.3]} 19. Rxa1 {[%clk 0:01:40.4]} 19... Kd7 {[%clk
0:02:25.8]} 20. Be5 {[%clk 0:01:26.1]} 20... Bd6 {[%clk 0:02:26]} 21. Bc3 {[%clk
0:01:15.5]} 21... b4 {[%clk 0:02:19.4]} 22. Bd4 {[%clk 0:01:09.6]} 22... Kc7
{[%clk 0:02:00.2]} 23. Re1 {[%clk 0:00:53.7]} 23... Ra8 {[%clk 0:01:53.2]} 24.
h3 {[%clk 0:00:46.3]} 24... Ra5 {[%clk 0:01:52.2]} 25. g4 {[%clk 0:00:43.2]}
25... e5 {[%clk 0:01:45.6]} 26. Be3 {[%clk 0:00:40.2]} 26... Nd5 {[%clk
0:01:45.8]} 27. Bd2 {[%clk 0:00:36.3]} 27... Bc5 {[%clk 0:01:38]} 28. Be3 {[%clk
0:00:32.6]} 28... Bxe3 {[%clk 0:01:23.6]} 29. fxe3 {[%clk 0:00:32.8]} 29... Nc3
{[%clk 0:01:24.2]} 30. Ra1 {[%clk 0:00:14.5]} 30... Rxa1 {[%clk 0:01:22.8]} 31.
Kxa1 {[%clk 0:00:15.4]} 31... Kd6 {[%clk 0:01:21.1]} 32. Kb2 {[%clk 0:00:15.4]}
32... h6 {[%clk 0:01:12.7]} 33. Kc1 {[%clk 0:00:15.2]} 33... g6 {[%clk
0:01:12.5]} 34. h4 {[%clk 0:00:15]} 34... f5 {[%clk 0:01:02.9]} 35. h5 {[%clk
0:00:14.1]} 35... fxg4 {[%clk 0:00:52.9]} 36. hxg6 {[%clk 0:00:13.5]} 36... gxf3
{[%clk 0:00:52.4]} 37. g7 {[%clk 0:00:13.6]} 37... f2 {[%clk 0:00:52.5]} 38.
g8=Q {[%clk 0:00:11]} 38... f1=Q+ {[%clk 0:00:52.2]} 39. Kd2 {[%clk 0:00:11.1]}
39... Qd1# {[%clk 0:00:52.1]} 0-1

[Event "Late-Titled-Tuesday-Blitz-January-23-2024"]
[Site "Chess.com"]
[Date "2024.01.23"]
[Round "1"]
[White "el_sporco"]
[Black "brm72"]
[Result "0-1"]
[WhiteElo "2369"]
[BlackElo "2675"]
[TimeControl "180+1"]
[EndTime "14:06:33 PST"]
[Termination "brm72 won by resignation"]

1. e4 {[%clk 0:03:00.9]} 1... c5 {[%clk 0:02:59.3]} 2. Nf3 {[%clk 0:02:57.4]}
2... Nc6 {[%clk 0:02:59.2]} 3. Bb5 {[%clk 0:02:57]} 3... e5 {[%clk 0:02:59.1]}
4. O-O {[%clk 0:02:50.7]} 4... Nge7 {[%clk 0:02:58.9]} 5. c3 {[%clk 0:02:30.1]}
5... g6 {[%clk 0:02:58.7]} 6. d4 {[%clk 0:02:12.4]} 6... exd4 {[%clk 0:02:59.6]}
7. cxd4 {[%clk 0:02:12.8]} 7... cxd4 {[%clk 0:03:00.5]} 8. Nxd4 {[%clk
0:02:13.2]} 8... Bg7 {[%clk 0:03:00]} 9. Be3 {[%clk 0:02:13.9]} 9... O-O {[%clk
0:02:58.7]} 10. Nc3 {[%clk 0:02:14.1]} 10... d5 {[%clk 0:02:58.8]} 11. exd5
{[%clk 0:01:41.1]} 11... Nb4 {[%clk 0:02:58.1]} 12. Bc4 {[%clk 0:01:29.1]} 12...
Nbxd5 {[%clk 0:02:24.6]} 13. Nxd5 {[%clk 0:01:25.2]} 13... Nxd5 {[%clk 0:02:24]}
14. Bxd5 {[%clk 0:00:59.2]} 14... Qxd5 {[%clk 0:02:24.9]} 15. Qb3 {[%clk
0:00:59.5]} 15... Qh5 {[%clk 0:02:15.1]} 16. Nb5 {[%clk 0:00:52.5]} 16... Be6
{[%clk 0:02:12.1]} 17. Qb4 {[%clk 0:00:49.9]} 17... a5 {[%clk 0:02:02.8]} 18.
Qc5 {[%clk 0:00:44.7]} 18... Qxc5 {[%clk 0:01:50.9]} 19. Bxc5 {[%clk 0:00:45.6]}
19... Rfc8 {[%clk 0:01:49.8]} 20. Bd4 {[%clk 0:00:45]} 20... Bc4 {[%clk
0:01:33.1]} 21. Nd6 {[%clk 0:00:33.1]} 21... Bxd4 {[%clk 0:01:29.1]} 22. Rfd1
{[%clk 0:00:31.6]} 22... Be5 {[%clk 0:00:38.7]} 23. Nxc8 {[%clk 0:00:29.4]}
23... Rxc8 {[%clk 0:00:39.6]} 24. Rac1 {[%clk 0:00:27.1]} 24... Bxb2 {[%clk
0:00:39.2]} 25. Rb1 {[%clk 0:00:26.5]} 25... Bf6 {[%clk 0:00:35.6]} 26. Rxb7
{[%clk 0:00:26.1]} 26... Bxa2 {[%clk 0:00:34.9]} 27. g3 {[%clk 0:00:24.3]} 27...
a4 {[%clk 0:00:34.3]} 28. Ra7 {[%clk 0:00:22.4]} 28... Bb3 {[%clk 0:00:34.1]}
29. Rd6 {[%clk 0:00:22.9]} 29... Bb2 {[%clk 0:00:32.9]} 30. Rb6 {[%clk
0:00:21.6]} 30... Bd4 {[%clk 0:00:31.6]} 0-1

[Event "Late-Titled-Tuesday-Blitz-January-23-2024"]
[Site "Chess.com"]
[Date "2024.01.23"]
[Round "1"]
[White "AlexSuv"]
[Black "LUISMIGUELOV"]
[Result "1-0"]
[WhiteElo "2573"]
[BlackElo "2184"]
[TimeControl "180+1"]
[EndTime "14:06:34 PST"]
[Termination "AlexSuv won by checkmate"]

1. Nf3 {[%clk 0:02:59.2]} 1... d5 {[%clk 0:02:59]} 2. b3 {[%clk 0:03:00.1]} 2...
Bg4 {[%clk 0:02:56]} 3. Bb2 {[%clk 0:03:00]} 3... Nd7 {[%clk 0:02:54.7]} 4. c4
{[%clk 0:02:55.2]} 4... e6 {[%clk 0:02:51.6]} 5. e3 {[%clk 0:02:54.4]} 5... Ngf6
{[%clk 0:02:49.9]} 6. Nc3 {[%clk 0:02:53.2]} 6... c6 {[%clk 0:02:49.6]} 7. h3
{[%clk 0:02:53.1]} 7... Bh5 {[%clk 0:02:48.3]} 8. Be2 {[%clk 0:02:48.9]} 8...
Bd6 {[%clk 0:02:47.7]} 9. d4 {[%clk 0:02:47.3]} 9... Qe7 {[%clk 0:02:45.7]} 10.
g4 {[%clk 0:02:37.2]} 10... Bg6 {[%clk 0:02:44.8]} 11. Nh4 {[%clk 0:02:37.8]}
11... Be4 {[%clk 0:02:37]} 12. Nxe4 {[%clk 0:02:37.4]} 12... Nxe4 {[%clk
0:02:36.1]} 13. Nf3 {[%clk 0:02:36.2]} 13... g6 {[%clk 0:02:31.9]} 14. a3 {[%clk
0:02:20.3]} 14... f5 {[%clk 0:02:30.9]} 15. Nd2 {[%clk 0:02:20.6]} 15... O-O-O
{[%clk 0:02:28.7]} 16. gxf5 {[%clk 0:02:00.3]} 16... gxf5 {[%clk 0:02:27.4]} 17.
Nxe4 {[%clk 0:01:39.5]} 17... fxe4 {[%clk 0:02:26.3]} 18. Qc2 {[%clk 0:01:38.7]}
18... Rdf8 {[%clk 0:02:17.2]} 19. Rf1 {[%clk 0:01:36.5]} 19... Rhg8 {[%clk
0:02:15]} 20. b4 {[%clk 0:01:34.9]} 20... Rg2 {[%clk 0:02:13.5]} 21. b5 {[%clk
0:01:34.2]} 21... Rfxf2 {[%clk 0:02:01.6]} 22. Rxf2 {[%clk 0:01:32]} 22... Bg3
{[%clk 0:02:01.1]} 23. O-O-O {[%clk 0:01:17.9]} 23... Rxf2 {[%clk 0:02:00]} 24.
bxc6 {[%clk 0:01:16.9]} 24... bxc6 {[%clk 0:01:48.3]} 25. cxd5 {[%clk
0:01:16.7]} 25... exd5 {[%clk 0:01:39.3]} 26. Qxc6+ {[%clk 0:01:16.9]} 26... Kd8
{[%clk 0:01:37.5]} 27. Bg4 {[%clk 0:01:12]} 27... Bd6 {[%clk 0:01:21.4]} 28.
Qxd5 {[%clk 0:00:57.1]} 28... Nb6 {[%clk 0:01:14.8]} 29. Qg8+ {[%clk 0:00:44.7]}
29... Kc7 {[%clk 0:01:09.3]} 30. Kb1 {[%clk 0:00:44.6]} 30... Kb7 {[%clk
0:01:07.2]} 31. Rc1 {[%clk 0:00:44.4]} 31... Bxa3 {[%clk 0:01:04.3]} 32. Bc8+
{[%clk 0:00:40.9]} 32... Nxc8 {[%clk 0:01:00.8]} 33. Qxc8+ {[%clk 0:00:40.3]}
33... Kb6 {[%clk 0:01:00.3]} 34. Qc6+ {[%clk 0:00:40.6]} 34... Ka5 {[%clk
0:00:58.8]} 35. Qd5+ {[%clk 0:00:32.8]} 35... Ka4 {[%clk 0:00:49.6]} 36. Qc6+
{[%clk 0:00:24.4]} 36... Ka5 {[%clk 0:00:41.1]} 37. Bxa3 {[%clk 0:00:23.8]}
37... Qxa3 {[%clk 0:00:37]} 38. Rc5+ {[%clk 0:00:24.1]} 38... Kb4 {[%clk
0:00:36.4]} 39. Qb5# {[%clk 0:00:24.5]} 1-0

[Event "Late-Titled-Tuesday-Blitz-January-23-2024"]
[Site "Chess.com"]
[Date "2024.01.23"]
[Round "1"]
[White "DenLaz"]
[Black "subham777"]
[Result "0-1"]
[WhiteElo "3085"]
[BlackElo "2555"]
[TimeControl "180+1"]
[EndTime "14:06:35 PST"]
[Termination "subham777 won by resignation"]

1. d4 {[%clk 0:03:00.9]} 1... d5 {[%clk 0:02:57.4]} 2. c4 {[%clk 0:03:01.2]}
2... e6 {[%clk 0:02:56]} 3. Nf3 {[%clk 0:03:01]} 3... Nf6 {[%clk 0:02:56.2]} 4.
Nc3 {[%clk 0:03:01.2]} 4... Be7 {[%clk 0:02:56.4]} 5. Bg5 {[%clk 0:02:57.5]}
5... O-O {[%clk 0:02:54.4]} 6. e3 {[%clk 0:02:57.5]} 6... Ne4 {[%clk 0:02:50.4]}
7. Bxe7 {[%clk 0:02:56.6]} 7... Qxe7 {[%clk 0:02:51.3]} 8. Rc1 {[%clk
0:02:54.9]} 8... c6 {[%clk 0:02:46.9]} 9. Bd3 {[%clk 0:02:54.2]} 9... f5 {[%clk
0:02:44.2]} 10. O-O {[%clk 0:02:53.5]} 10... Nd7 {[%clk 0:02:38.1]} 11. Qc2
{[%clk 0:02:52.5]} 11... Ndf6 {[%clk 0:02:36.1]} 12. Ne5 {[%clk 0:02:51]} 12...
Bd7 {[%clk 0:02:34.5]} 13. Ne2 {[%clk 0:02:49.3]} 13... g5 {[%clk 0:02:22.2]}
14. f3 {[%clk 0:02:49]} 14... Nd6 {[%clk 0:02:21.4]} 15. Qd2 {[%clk 0:02:47.5]}
15... Kg7 {[%clk 0:02:13.6]} 16. b4 {[%clk 0:02:45.7]} 16... dxc4 {[%clk
0:01:59.1]} 17. Bxc4 {[%clk 0:02:42.9]} 17... Nxc4 {[%clk 0:01:58]} 18. Rxc4
{[%clk 0:02:43.8]} 18... Nd5 {[%clk 0:01:57.2]} 19. Rfc1 {[%clk 0:02:39.6]}
19... Be8 {[%clk 0:01:53.8]} 20. e4 {[%clk 0:02:37.9]} 20... fxe4 {[%clk
0:01:49.1]} 21. fxe4 {[%clk 0:02:38.8]} 21... Nf4 {[%clk 0:01:48.6]} 22. Nxf4
{[%clk 0:02:35.8]} 22... Rxf4 {[%clk 0:01:48.1]} 23. Qe3 {[%clk 0:02:33.1]}
23... Bg6 {[%clk 0:01:41.8]} 24. Nxg6 {[%clk 0:02:25.3]} 24... hxg6 {[%clk
0:01:30.4]} 25. Rc5 {[%clk 0:02:22.5]} 25... Raf8 {[%clk 0:01:28.3]} 26. h3
{[%clk 0:02:18.3]} 26... g4 {[%clk 0:01:21.5]} 27. hxg4 {[%clk 0:02:14.5]} 27...
Rxg4 {[%clk 0:01:06.2]} 28. b5 {[%clk 0:00:56.1]} 28... Qh4 {[%clk 0:01:04.4]}
29. bxc6 {[%clk 0:00:40.6]} 29... Rxe4 {[%clk 0:01:02.1]} 30. Qd2 {[%clk
0:00:24.8]} 30... Rh8 {[%clk 0:00:42.4]} 31. Qg5 {[%clk 0:00:05.2]} 31... Qh2+
{[%clk 0:00:41.8]} 32. Kf2 {[%clk 0:00:05.5]} 32... Rf8+ {[%clk 0:00:41.1]} 0-1

[Event "Late-Titled-Tuesday-Blitz-January-23-2024"]
[Site "Chess.com"]
[Date "2024.01.23"]
[Round "1"]
[White "SmirnovTimofey2000"]
[Black "Siemba"]
[Result "0-1"]
[WhiteElo "1956"]
[BlackElo "2548"]
[TimeControl "180+1"]
[EndTime "14:06:40 PST"]
[Termination "Siemba won by resignation"]

1. e4 {[%clk 0:02:59.7]} 1... e5 {[%clk 0:02:58.5]} 2. Nf3 {[%clk 0:02:59.7]}
2... Nc6 {[%clk 0:02:57.7]} 3. Bc4 {[%clk 0:02:59.5]} 3... Nf6 {[%clk 0:02:55]}
4. Ng5 {[%clk 0:02:55]} 4... d5 {[%clk 0:02:49.9]} 5. exd5 {[%clk 0:02:52.7]}
5... Na5 {[%clk 0:02:50]} 6. Bb5+ {[%clk 0:02:52.9]} 6... c6 {[%clk 0:02:49.4]}
7. dxc6 {[%clk 0:02:53.1]} 7... bxc6 {[%clk 0:02:50.3]} 8. Bd3 {[%clk
0:02:52.7]} 8... Nd5 {[%clk 0:02:45.1]} 9. Nf3 {[%clk 0:02:52.7]} 9... Bd6
{[%clk 0:02:40.1]} 10. O-O {[%clk 0:02:43.1]} 10... O-O {[%clk 0:02:36.2]} 11.
Nc3 {[%clk 0:02:10.4]} 11... f5 {[%clk 0:02:29.4]} 12. Be2 {[%clk 0:01:56.5]}
12... e4 {[%clk 0:02:18.2]} 13. Ne1 {[%clk 0:01:52.7]} 13... Qc7 {[%clk
0:01:29]} 14. g3 {[%clk 0:01:46.5]} 14... Be6 {[%clk 0:01:19.2]} 15. Ng2 {[%clk
0:01:41.6]} 15... Rab8 {[%clk 0:01:17.3]} 16. d3 {[%clk 0:01:33.8]} 16... exd3
{[%clk 0:01:00.2]} 17. Nxd5 {[%clk 0:01:27.8]} 17... dxe2 {[%clk 0:00:52.5]} 18.
Nxc7 {[%clk 0:01:26.4]} 18... exd1=Q {[%clk 0:00:52.3]} 19. Rxd1 {[%clk
0:01:25.2]} 19... Bxc7 {[%clk 0:00:52.1]} 20. c3 {[%clk 0:01:13.7]} 20... Nc4
{[%clk 0:00:47.3]} 21. Nf4 {[%clk 0:01:02.5]} 21... Bxf4 {[%clk 0:00:44.8]} 22.
Bxf4 {[%clk 0:01:03.2]} 22... Rxb2 {[%clk 0:00:44.6]} 23. Re1 {[%clk 0:00:48.3]}
23... Bd5 {[%clk 0:00:43.6]} 24. a4 {[%clk 0:00:33]} 24... Nd2 {[%clk
0:00:40.5]} 25. Bxd2 {[%clk 0:00:28]} 25... Rxd2 {[%clk 0:00:41.4]} 26. a5
{[%clk 0:00:22.2]} 26... Rc2 {[%clk 0:00:39.2]} 27. Rec1 {[%clk 0:00:21.3]}
27... Rxc1+ {[%clk 0:00:37.6]} 28. Rxc1 {[%clk 0:00:21.6]} 28... f4 {[%clk
0:00:38.5]} 29. Kf1 {[%clk 0:00:20.7]} 29... fxg3 {[%clk 0:00:37.5]} 30. hxg3
{[%clk 0:00:20.4]} 30... Bc4+ {[%clk 0:00:37.2]} 31. Ke1 {[%clk 0:00:19.9]}
31... Re8+ {[%clk 0:00:36.9]} 32. Kd2 {[%clk 0:00:18.5]} 32... Re2+ {[%clk
0:00:37.8]} 0-1